fUST/lending_fUST_20260305
["ID","MTS","AMOUNT","RATE_DAILY","PERIOD"]
[407688557,1772676645973,-271.27494518,8.596e-05,2]
[407688558,1772676645983,-372.29734973,8.596e-05,2]
[407688559,1772676645992,-500.0,8.596e-05,2]
[407688560,1772676646002,-500.0,8.596e-05,2]
[407688561,1772676646011,-500.0,8.596e-05,2]
[407688563,1772676646021,-500.0,8.596e-05,2]
[407688565,1772676646032,-500.0,8.596e-05,2]
[407688567,1772676646042,-500.0,8.596e-05,2]
[407688569,1772676646051,-500.0,8.596e-05,2]
[407688571,1772676646061,-500.0,8.596e-05,2]
[407688573,1772676646070,-500.0,8.596e-05,2]
[407688575,1772676646080,-500.0,8.596e-05,2]
[407688577,1772676646091,-500.0,8.596e-05,2]
[407688579,1772676646100,-500.0,8.596e-05,2]
[407688581,1772676646109,-500.0,8.596e-05,2]
[407688583,1772676646119,-500.0,8.596e-05,2]
[407688586,1772676646129,-500.0,8.596e-05,2]
[407688588,1772676646139,-500.0,8.596e-05,2]
[407688590,1772676646148,-500.0,8.596e-05,2]
[407688592,1772676646162,-500.0,8.596e-05,2]
[407688594,1772676646171,-500.0,8.596e-05,2]
[407688596,1772676646181,-244.38171969,8.596e-05,2]
[407688598,1772676646190,-500.0,8.596e-05,2]
[407688600,1772676646200,-318.87970982,8.596e-05,2]
[407688602,1772676646210,-500.0,8.596e-05,2]
[407688604,1772676646220,-500.0,8.596e-05,2]
[407688606,1772676646231,-500.0,8.596e-05,2]
[407688608,1772676646242,-500.0,8.596e-05,2]
[407688610,1772676646251,-500.0,8.596e-05,2]
[407688612,1772676646261,-500.0,8.596e-05,2]
[407688614,1772676646271,-500.0,8.596e-05,2]
[407688616,1772676646280,-500.0,8.596e-05,2]
[407688618,1772676646289,-500.0,8.596e-05,2]
[407688620,1772676646299,-500.0,8.596e-05,2]
[407688622,1772676646308,-500.0,8.596e-05,2]
[407688624,1772676646318,-500.0,8.596e-05,2]
[407688626,1772676646327,-500.0,8.596e-05,2]
[407688628,1772676646337,-500.0,8.596e-05,2]
[407688630,1772676646348,-500.0,8.596e-05,2]
[407688632,1772676646357,-500.0,8.596e-05,2]
[407688634,1772676646371,-500.0,8.596e-05,2]
[407688637,1772676646385,-500.0,8.596e-05,2]
[407688639,1772676646400,-500.0,8.596e-05,2]
[407688641,1772676646421,-500.0,8.596e-05,2]
[407688643,1772676646431,-500.0,8.596e-05,2]
[407688645,1772676646441,-500.0,8.596e-05,2]
[407688647,1772676646451,-500.0,8.596e-05,2]
[407688649,1772676646461,-500.0,8.596e-05,2]
[407688651,1772676646471,-500.0,8.596e-05,2]
[407688653,1772676646481,-500.0,8.596e-05,2]
[407688655,1772676646491,-500.0,8.596e-05,2]
[407688657,1772676646502,-500.0,8.596e-05,2]
[407688659,1772676646511,-500.0,8.596e-05,2]
[407688661,1772676646521,-500.0,8.596e-05,2]
[407688663,1772676646531,-500.0,8.596e-05,2]
[407688665,1772676646540,-500.0,8.596e-05,2]
[407688667,1772676646550,-500.0,8.596e-05,2]
[407688669,1772676646560,-500.0,8.596e-05,2]
[407688672,1772676646570,-500.0,8.596e-05,2]
[407688674,1772676646580,-500.0,8.596e-05,2]
[407688676,1772676646591,-500.0,8.596e-05,2]
[407688678,1772676646600,-500.0,8.596e-05,2]
[407688680,1772676646610,-500.0,8.596e-05,2]
[407688682,1772676646620,-500.0,8.596e-05,2]
[407688684,1772676646630,-500.0,8.596e-05,2]
[407688686,1772676646640,-500.0,8.596e-05,2]
[407688688,1772676646650,-500.0,8.596e-05,2]
[407688690,1772676646659,-500.0,8.596e-05,2]
[407688692,1772676646669,-500.0,8.596e-05,2]
[407688694,1772676646678,-500.0,8.596e-05,2]
[407688696,1772676646688,-500.0,8.596e-05,2]
[407688698,1772676646698,-31621.76007579,8.597e-05,2]
[407688700,1772676646708,-474.66687648,8.597e-05,2]
[407688702,1772676646718,-173.18016768,8.597e-05,2]
[407688704,1772676646727,-17011.98882406,8.598e-05,2]
[407688710,1772676646772,-10501.62486935,8.598e-05,2]
[407689423,1772677662275,1043.85,0.000157,120]
[407689449,1772677832187,-2452.78404992,7.503e-05,2]
[407689488,1772677843208,-438.87021569,7.503e-05,2]
[407689510,1772677846175,-2108.34573439,7.503e-05,2]
[407689511,1772677846184,-527.0,7.579e-05,2]
[407689512,1772677846194,-213.46880852,7.579e-05,2]
[407689513,1772677846203,-384.24385534,7.579e-05,2]
[407689514,1772677846213,-683.10018726,7.579e-05,2]
[407689515,1772677846221,-1066.27669856,7.579e-05,2]
[407689516,1772677846230,-787.66617593,7.819e-05,3]
[407689517,1772677846239,-325.53808777,8.2e-05,2]
[407689518,1772677846248,-481.07462568,8.2e-05,2]
[407689519,1772677846257,-332.26541597,8.3e-05,2]
[407689520,1772677846267,-293.63906427,8.394e-05,2]
[407689521,1772677846278,-206.36093573,8.394e-05,2]
[407689522,1772677846287,-74.34512798,8.394e-05,2]
[407689523,1772677846317,-425.65487202,8.394e-05,2]
[407689524,1772677846326,-153.73555408,8.394e-05,2]
[407689525,1772677846335,-500.0,8.394e-05,2]
[407689526,1772677846344,-500.0,8.394e-05,2]
[407689527,1772677846355,-500.0,8.394e-05,2]
[407689528,1772677846366,-500.0,8.394e-05,2]
[407689529,1772677846378,-500.0,8.394e-05,2]
[407689530,1772677846388,-500.0,8.394e-05,2]
[407689531,1772677846398,-500.0,8.394e-05,2]
[407689532,1772677846408,-500.0,8.394e-05,2]
[407689533,1772677846417,-500.0,8.394e-05,2]
[407689534,1772677846426,-500.0,8.394e-05,2]
[407689535,1772677846436,-500.0,8.394e-05,2]
[407689536,1772677846444,-500.0,8.394e-05,2]
[407689537,1772677846454,-500.0,8.394e-05,2]
[407689538,1772677846463,-500.0,8.394e-05,2]
[407689539,1772677846471,-500.0,8.394e-05,2]
[407689540,1772677846481,-500.0,8.394e-05,2]
[407689541,1772677846490,-500.0,8.394e-05,2]
[407689542,1772677846502,-500.0,8.394e-05,2]
[407689543,1772677846513,-500.0,8.394e-05,2]
[407689544,1772677846522,-500.0,8.394e-05,2]
[407689545,1772677846532,-500.0,8.394e-05,2]
[407689546,1772677846542,-500.0,8.394e-05,2]
[407689547,1772677846551,-500.0,8.394e-05,2]
[407689548,1772677846560,-500.0,8.394e-05,2]
[407689549,1772677846570,-500.0,8.394e-05,2]
[407689550,1772677846579,-500.0,8.394e-05,2]
[407689551,1772677846589,-602.10170415,8.394e-05,2]
[407689552,1772677846598,-500.0,8.394e-05,2]
[407689553,1772677846608,-500.0,8.394e-05,2]
[407689554,1772677846618,-500.0,8.394e-05,2]
[407689555,1772677846627,-500.0,8.394e-05,2]
[407689556,1772677846637,-500.0,8.394e-05,2]
[407689557,1772677846646,-496.88797098,8.394e-05,2]
[407689558,1772677846656,-500.0,8.394e-05,2]
[407689559,1772677846665,-500.0,8.394e-05,2]
[407689560,1772677846675,-500.0,8.394e-05,2]
[407689561,1772677846684,-500.0,8.394e-05,2]
[407689562,1772677846694,-500.0,8.394e-05,2]
[407689563,1772677846704,-500.0,8.394e-05,2]
[407689564,1772677846714,-500.0,8.394e-05,2]
[407689565,1772677846724,-500.0,8.394e-05,2]
[407689566,1772677846733,-426.42388674,8.394e-05,2]
[407689567,1772677846742,-500.0,8.394e-05,2]
[407689568,1772677846752,-500.0,8.394e-05,2]
[407689569,1772677846762,-500.0,8.394e-05,2]
[407689570,1772677846771,-500.0,8.394e-05,2]
[407689571,1772677846780,-500.0,8.394e-05,2]
[407689572,1772677846790,-500.0,8.394e-05,2]
[407689573,1772677846799,-500.0,8.394e-05,2]
[407689574,1772677846809,-500.0,8.394e-05,2]
[407689575,1772677846819,-500.0,8.394e-05,2]
[407689576,1772677846828,-500.0,8.394e-05,2]
[407689577,1772677846838,-500.0,8.394e-05,2]
[407689578,1772677846848,-500.0,8.394e-05,2]
[407689579,1772677846857,-500.0,8.394e-05,2]
[407689580,1772677846866,-500.0,8.394e-05,2]
[407689581,1772677846875,-500.0,8.394e-05,2]
[407689582,1772677846884,-500.0,8.394e-05,2]
[407689583,1772677846893,-500.0,8.396e-05,2]
[407689584,1772677846903,-332.26681353,8.396e-05,2]
[407689585,1772677846913,-34590.90370117,8.397e-05,2]
[407689586,1772677846976,-6200.0,8.397e-05,2]
[407689587,1772677882028,-3885.9488046,8.313e-05,2]
[407689589,1772678175408,523.0,0.000157,120]
[407689631,1772679032237,-4369.27373816,7.725e-05,2]
[407690047,1772679046610,-630.72626184,7.725e-05,2]
[407690048,1772679046620,-40.89893468,7.803e-05,2]
[407690049,1772679046636,-489.10106532,7.803e-05,2]
[407690050,1772679046646,-232.69407066,7.842e-05,2]
[407690051,1772679046655,-175.941698,7.885e-05,2]
[407690052,1772679046665,-300.0,8.098e-05,2]
[407690053,1772679046675,-500.0,8.099e-05,2]
[407690054,1772679046684,-500.0,8.099e-05,2]
[407690055,1772679046694,-500.0,8.099e-05,2]
[407690056,1772679046703,-500.0,8.099e-05,2]
[407690057,1772679046713,-500.0,8.099e-05,2]
[407690058,1772679046722,-500.0,8.099e-05,2]
[407690059,1772679046732,-317.38171644,8.099e-05,2]
[407690060,1772679046750,-182.61828356,8.099e-05,2]
[407690061,1772679046761,-500.0,8.099e-05,2]
[407690062,1772679046770,-500.0,8.099e-05,2]
[407690063,1772679046780,-500.0,8.099e-05,2]
[407690064,1772679046790,-500.0,8.099e-05,2]
[407690065,1772679046799,-500.0,8.099e-05,2]
[407690066,1772679046809,-500.0,8.099e-05,2]
[407690067,1772679046819,-500.0,8.099e-05,2]
[407690068,1772679046828,-500.0,8.099e-05,2]
[407690069,1772679046838,-500.0,8.099e-05,2]
[407690070,1772679046851,-500.0,8.099e-05,2]
[407690071,1772679046861,-500.0,8.099e-05,2]
[407690072,1772679046870,-525.51293249,8.099e-05,2]
[407690179,1772679912629,1617.72,0.00015,120]
[407690180,1772680144094,5493.38,4e-05,2]
[407690219,1772680232332,-3548.66912318,6.449e-05,2]
[407690250,1772680238613,-1451.33087682,6.449e-05,2]
[407690251,1772680238623,-513.0,6.514e-05,2]
[407690252,1772680238632,-231.77897649,6.58e-05,2]
[407690253,1772680238641,-300.0,7.165e-05,2]
[407690254,1772680238650,-300.0,7.165e-05,2]
[407690255,1772680238659,-300.0,7.165e-05,2]
[407690256,1772680238668,-300.0,7.165e-05,2]
[407690257,1772680238677,-300.0,7.166e-05,2]
[407690258,1772680238686,-369.19765562,7.167e-05,2]
[407690260,1772680238695,-421.94017785,7.167e-05,2]
[407690262,1772680238704,-658.62224637,7.167e-05,2]
[407690263,1772680238713,-304.02897887,7.2e-05,2]
[407690265,1772680238723,-547.25216196,7.2e-05,2]
[407690267,1772680238731,-972.89273238,7.2e-05,2]
[407690269,1772680238740,-690.38836876,7.2e-05,2]
[407690270,1772680238763,-828.23638068,7.2e-05,2]
[407690271,1772680238773,-305.85307532,7.8e-05,2]
[407690272,1772680238783,-190.08948227,7.8e-05,2]
[407690273,1772680238793,-587.20382964,7.8e-05,2]
[407690274,1772680238802,-301.0,7.882e-05,2]
[407690275,1772680238811,-321.98018938,7.9e-05,2]
[407690276,1772680238820,-331.31796362,7.9e-05,2]
[407690277,1772680238830,-582.19061518,7.9e-05,2]
[407690278,1772680238839,-656.11105463,7.9e-05,2]
[407690325,1772680246509,-1863.50772804,7.9e-05,2]
[407690460,1772681437701,-5000.0,6.793e-05,2]
[407690462,1772681437711,-517.0,6.862e-05,2]
[407690464,1772681437721,-227.14339697,6.966e-05,2]
[407690466,1772681437731,-313.05037907,7.001e-05,2]
[407690467,1772681437740,-175.941698,7.163e-05,2]
[407690468,1772681437750,-1113.05095169,7.505e-05,2]
[407690469,1772681437759,-500.0,7.505e-05,2]
[407690470,1772681437775,-500.0,7.505e-05,2]
[407690471,1772681437785,-500.0,7.505e-05,2]
[407690472,1772681437795,-500.0,7.505e-05,2]
[407690473,1772681437804,-648.86900438,7.505e-05,2]
[407690475,1772681437814,-500.0,7.505e-05,2]
[407690476,1772681437823,-500.0,7.505e-05,2]
[407690477,1772681437833,-500.0,7.505e-05,2]
[407690478,1772681437843,-500.0,7.505e-05,2]
[407690479,1772681437853,-500.0,7.505e-05,2]
[407690480,1772681437863,-500.0,7.505e-05,2]
[407690481,1772681437874,-500.0,7.505e-05,2]
[407690482,1772681437884,-500.0,7.505e-05,2]
[407690483,1772681437894,-500.0,7.505e-05,2]
[407690484,1772681437904,-500.0,7.505e-05,2]
[407690485,1772681437914,-500.0,7.505e-05,2]
[407690486,1772681437923,-500.0,7.505e-05,2]
[407690487,1772681437933,-500.0,7.505e-05,2]
[407690488,1772681437942,-500.0,7.505e-05,2]
[407690489,1772681437952,-500.0,7.505e-05,2]
[407690490,1772681437962,-495.54550602,7.505e-05,2]
[407690491,1772681437971,-500.0,7.505e-05,2]
[407690492,1772681437981,-500.0,7.505e-05,2]
[407690493,1772681437991,-500.0,7.505e-05,2]
[407690494,1772681438000,-499.99999999,7.505e-05,2]
[407690495,1772681438010,-1601.2888264,7.506e-05,2]
[407690496,1772681438020,-3401.9222112,7.506e-05,2]
[407690497,1772681438029,-973.7153226,7.506e-05,2]
[407690498,1772681438038,-6594.642748,7.506e-05,2]
[407690499,1772681438048,-24010.8619158,7.506e-05,2]
[407690500,1772681438058,-7294.6032988,7.506e-05,2]
[407690501,1772681438067,-175.941698,7.54e-05,2]
[407690502,1772681438077,-384.17708147,7.576e-05,2]
[407690503,1772681438087,-213.43171193,7.576e-05,2]
[407690504,1772681438096,-682.98147817,7.576e-05,2]
[407690505,1772681438105,-1066.09140108,7.576e-05,2]
[407690506,1772681438115,-185.06612697,7.644e-05,2]
[407690507,1772681438125,-176.07,7.882e-05,2]
[407690508,1772681438134,-200.0,7.9e-05,2]
[407690509,1772681438143,-200.0,7.9e-05,2]
[407690510,1772681438152,-200.0,7.9e-05,2]
[407690511,1772681438162,-200.0,7.9e-05,2]
[407690512,1772681438175,-200.0,7.9e-05,2]
[407690513,1772681438184,-175.941698,7.917e-05,2]
[407690514,1772681438194,-2591.60067863,8e-05,2]
[407690515,1772681438203,-174.72426967,8.1e-05,2]
[407690516,1772681438213,-500.0,8.206e-05,2]
[407690517,1772681438222,-531.87199517,8.206e-05,2]
[407690518,1772681438232,-162.380719,8.206e-05,2]
[407690519,1772681438242,-168.3888056,8.206e-05,2]
[407690520,1772681438251,-174.61919141,8.206e-05,2]
[407690521,1772681438263,-181.08010149,8.206e-05,2]
[407690522,1772681438273,-187.78006525,8.206e-05,2]
[407690523,1772681438283,-343.05911796,8.206e-05,2]
[407690524,1772681438292,-151.45904865,8.206e-05,2]
[407690525,1772681438302,-250.0,8.206e-05,2]
[407690526,1772681438311,-250.0,8.206e-05,2]
[407690527,1772681438320,-631.06493645,8.206e-05,2]
[407690528,1772681438330,-250.0,8.206e-05,2]
[407690529,1772681438339,-250.0,8.206e-05,2]
[407690530,1772681438348,-250.0,8.206e-05,2]
[407690531,1772681438357,-250.0,8.206e-05,2]
[407690532,1772681438368,-250.0,8.206e-05,2]
[407690533,1772681438378,-250.0,8.206e-05,2]
[407690534,1772681438387,-250.0,8.206e-05,2]
[407690535,1772681438396,-278.91612669,8.206e-05,2]
[407690536,1772681438406,-2150.738,8.206e-05,2]
[407690537,1772681438416,-334.51089986,8.219e-05,2]
[407690538,1772681438427,-9000.0,8.219e-05,2]
[407690539,1772681438436,-416.42824315,8.219e-05,2]
[407690540,1772681438445,-500.0,8.219e-05,2]
[407690541,1772681438455,-175.941698,8.294e-05,2]
[407690542,1772681438466,-222.93,8.3e-05,2]
[407690543,1772681438477,-300.0,8.3e-05,2]
[407690544,1772681438486,-186.52157373,8.394e-05,2]
[407690545,1772681438496,-243.20633319,8.394e-05,2]
[407690546,1772681438505,-277.95009508,8.394e-05,2]
[407690547,1772681438515,-3251.8738126,8.396e-05,2]
[407690548,1772681438524,-335.40309389,8.448e-05,2]
[407690549,1772681438534,-500.0,8.493e-05,2]
[407690550,1772681438543,-376.37,8.547e-05,2]
[407690551,1772681438551,-1471.4636924,8.56e-05,2]
[407690552,1772681438561,-5357.5474645,8.56e-05,2]
[407690553,1772681438570,-175.941698,8.671e-05,2]
[407690554,1772681438583,-433.86272654,8.682e-05,2]
[407690555,1772681438595,-151.0,8.699e-05,2]
[407690556,1772681438605,-180.07739912,8.699e-05,2]
[407690557,1772681438616,-151.0,8.699e-05,2]
[407690558,1772681438625,-151.0,8.699e-05,2]
[407690559,1772681438636,-151.0,8.699e-05,2]
[407690560,1772681438646,-151.0,8.699e-05,2]
[407690561,1772681438658,-249.81779725,8.699e-05,2]
[407690562,1772681438667,-338.0,8.699e-05,2]
[407690563,1772681438676,-338.0,8.699e-05,2]
[407690564,1772681438684,-338.0,8.699e-05,2]
[407690565,1772681438693,-338.0,8.699e-05,2]
[407690566,1772681438702,-338.0,8.699e-05,2]
[407690567,1772681438711,-338.0,8.699e-05,2]
[407690568,1772681438720,-338.0,8.699e-05,2]
[407690569,1772681438729,-338.0,8.699e-05,2]
[407690570,1772681438737,-338.0,8.699e-05,2]
[407690571,1772681438748,-338.0,8.699e-05,2]
[407690572,1772681438756,-338.0,8.699e-05,2]
[407690573,1772681438766,-338.0,8.699e-05,2]
[407690574,1772681438775,-338.0,8.699e-05,2]
[407690575,1772681438784,-338.0,8.699e-05,2]
[407690576,1772681438793,-2230.315306,8.754e-05,2]
[407690577,1772681438803,-500.0,8.767e-05,2]
[407690578,1772681438812,-328.3279293,8.796e-05,2]
[407690579,1772681438821,-1195.4304237,8.796e-05,2]
[407690580,1772681438830,-352.46108487,8.8e-05,2]
[407690581,1772681438839,-174.72426967,8.845e-05,2]
[407690582,1772681438848,-268.02920842,8.966e-05,2]
[407690583,1772681438857,-5019.7407429,9e-05,2]
[407690584,1772681438867,-2639.93450573,9e-05,2]
[407690585,1772681438876,-5000.0,9e-05,2]
[407690586,1772681438886,-5000.0,9e-05,2]
[407690587,1772681438896,-588.5943835,9e-05,2]
[407690588,1772681438913,-4411.4056165,9e-05,2]
[407690589,1772681438922,-5000.0,9e-05,2]
[407690590,1772681438931,-5000.0,9e-05,2]
[407690591,1772681438940,-5244.20388505,9.006e-05,2]
[407690592,1772681438949,-530.12887197,9.041e-05,2]
[407690593,1772681438958,-1627.6460023,9.209e-05,2]
[407690594,1772681438967,-433.0,9.232e-05,2]
[407690595,1772681438979,-731.0,9.232e-05,2]
[407690596,1772681438989,-2312.83697232,9.302e-05,2]
[407690597,1772681439001,-169.3717337,9.577e-05,2]
[407690598,1772681439011,-363.1769131,9.589e-05,2]
[407690599,1772681439021,-174.72426967,9.589e-05,2]
[407690600,1772681439031,-151.0,9.589e-05,2]
[407690601,1772681439040,-151.0,9.589e-05,2]
[407690602,1772681439051,-151.0,9.589e-05,2]
[407690603,1772681439072,-151.0,9.589e-05,2]
[407690604,1772681439082,-151.0,9.589e-05,2]
[407690605,1772681439105,-179.821143,9.589e-05,2]
[407690606,1772681439127,-151.0,9.589e-05,2]
[407690607,1772681439148,-151.0,9.589e-05,2]
[407690609,1772681439158,-151.0,9.589e-05,2]
[407690610,1772681439168,-151.0,9.589e-05,2]
[407690611,1772681439178,-151.0,9.589e-05,2]
[407690612,1772681439188,-151.0,9.589e-05,2]
[407690613,1772681439199,-151.0,9.589e-05,2]
[407690614,1772681439208,-151.0,9.589e-05,2]
[407690615,1772681439218,-151.0,9.589e-05,2]
[407690616,1772681439228,-151.0,9.589e-05,2]
[407690617,1772681439237,-151.0,9.589e-05,2]
[407690618,1772681439246,-151.0,9.589e-05,2]
[407690619,1772681439256,-151.0,9.589e-05,2]
[407690620,1772681439265,-151.0,9.589e-05,2]
[407690621,1772681439274,-151.0,9.589e-05,2]
[407690622,1772681439283,-151.0,9.589e-05,2]
[407690623,1772681439293,-267.917361,9.589e-05,2]
[407690624,1772681439302,-500.0,9.589e-05,2]
[407690625,1772681439312,-500.0,9.589e-05,2]
[407690626,1772681439322,-500.0,9.589e-05,2]
[407690627,1772681439331,-500.0,9.589e-05,2]
[407690628,1772681439341,-500.0,9.589e-05,2]
[407690629,1772681439350,-500.0,9.589e-05,2]
[407690630,1772681439360,-500.0,9.589e-05,2]
[407690632,1772681439370,-500.0,9.589e-05,2]
[407690633,1772681439380,-500.0,9.589e-05,2]
[407690634,1772681439389,-500.0,9.589e-05,2]
[407690635,1772681439398,-500.0,9.589e-05,2]
[407690636,1772681439407,-500.0,9.589e-05,2]
[407690637,1772681439417,-500.0,9.589e-05,2]
[407690638,1772681439427,-500.0,9.589e-05,2]
[407690639,1772681439436,-500.0,9.589e-05,2]
[407690640,1772681439446,-500.0,9.589e-05,2]
[407690641,1772681439456,-500.0,9.589e-05,2]
[407690642,1772681439465,-500.0,9.589e-05,2]
[407690643,1772681439475,-500.0,9.589e-05,2]
[407690644,1772681439484,-500.0,9.589e-05,2]
[407690645,1772681439494,-177.530493,9.589e-05,2]
[407690646,1772681439505,-151.0,9.589e-05,2]
[407690647,1772681439514,-177.530493,9.589e-05,2]
[407690648,1772681439524,-151.0,9.589e-05,2]
[407690649,1772681439532,-177.530493,9.589e-05,2]
[407690650,1772681439542,-151.0,9.589e-05,2]
[407690651,1772681439552,-177.530493,9.589e-05,2]
[407690652,1772681439561,-151.0,9.589e-05,2]
[407690653,1772681439572,-177.530493,9.589e-05,2]
[407690654,1772681439585,-151.0,9.589e-05,2]
[407690655,1772681439594,-151.0,9.589e-05,2]
[407690656,1772681439604,-177.530493,9.589e-05,2]
[407690657,1772681439615,-151.0,9.589e-05,2]
[407690659,1772681439625,-151.0,9.589e-05,2]
[407690660,1772681439634,-177.530493,9.589e-05,2]
[407690661,1772681439644,-151.0,9.589e-05,2]
[407690662,1772681439654,-151.0,9.589e-05,2]
[407690663,1772681439664,-177.530493,9.589e-05,2]
[407690664,1772681439673,-151.0,9.589e-05,2]
[407690665,1772681439683,-151.0,9.589e-05,2]
[407690666,1772681439693,-177.530493,9.589e-05,2]
[407690667,1772681439702,-151.0,9.589e-05,2]
[407690668,1772681439712,-151.0,9.589e-05,2]
[407690669,1772681439721,-177.530493,9.589e-05,2]
[407690670,1772681439731,-151.0,9.589e-05,2]
[407690671,1772681439742,-151.0,9.589e-05,2]
[407690672,1772681439751,-177.530493,9.589e-05,2]
[407690673,1772681439762,-151.0,9.589e-05,2]
[407690674,1772681439772,-151.053952,9.589e-05,2]
[407690675,1772681439782,-177.530493,9.589e-05,2]
[407690676,1772681439791,-151.0,9.589e-05,2]
[407690677,1772681439801,-151.0,9.589e-05,2]
[407690678,1772681439810,-177.530493,9.589e-05,2]
[407690679,1772681439819,-151.0,9.589e-05,2]
[407690680,1772681439828,-151.0,9.589e-05,2]
[407690681,1772681439838,-177.530493,9.589e-05,2]
[407690683,1772681439847,-151.0,9.589e-05,2]
[407690685,1772681439856,-151.0,9.589e-05,2]
[407690687,1772681439866,-177.530493,9.589e-05,2]
[407690689,1772681439875,-228.15573,9.589e-05,2]
[407690691,1772681439884,-151.0,9.589e-05,2]
[407690693,1772681439894,-177.530493,9.589e-05,2]
[407690695,1772681439903,-151.0,9.589e-05,2]
[407690697,1772681439913,-177.530493,9.589e-05,2]
[407690699,1772681439922,-151.0,9.589e-05,2]
[407690701,1772681439931,-177.530493,9.589e-05,2]
[407690704,1772681439941,-177.530493,9.589e-05,2]
[407690705,1772681439950,-151.0,9.589e-05,2]
[407690707,1772681439959,-156.861235,9.589e-05,2]
[407690709,1772681439968,-177.530485,9.589e-05,2]
[407690711,1772681439978,-151.0,9.589e-05,2]
[407690742,1772681440248,-151.0,9.589e-05,2]
[407690744,1772681440257,-155.043199,9.589e-05,2]
[407690746,1772681440267,-156.861235,9.589e-05,2]
[407690748,1772681440275,-156.861235,9.589e-05,2]
[407690750,1772681440285,-156.861235,9.589e-05,2]
[407690752,1772681440295,-156.861235,9.589e-05,2]
[407690754,1772681440304,-156.861235,9.589e-05,2]
[407690756,1772681440314,-156.861235,9.589e-05,2]
[407690758,1772681440323,-156.861235,9.589e-05,2]
[407690760,1772681440332,-156.861235,9.589e-05,2]
[407690762,1772681440340,-156.861235,9.589e-05,2]
[407690764,1772681440350,-156.861235,9.589e-05,2]
[407690766,1772681440359,-156.861235,9.589e-05,2]
[407690768,1772681440368,-156.861235,9.589e-05,2]
[407690770,1772681440377,-156.861235,9.589e-05,2]
[407690772,1772681440387,-156.861235,9.589e-05,2]
[407690774,1772681440396,-156.861235,9.589e-05,2]
[407690776,1772681440405,-156.861235,9.589e-05,2]
[407690778,1772681440414,-156.861235,9.589e-05,2]
[407690780,1772681440423,-156.861235,9.589e-05,2]
[407690782,1772681440432,-156.861234,9.589e-05,2]
[407690784,1772681440442,-151.0,9.589e-05,2]
[407690786,1772681440450,-151.0,9.589e-05,2]
[407690788,1772681440459,-151.0,9.589e-05,2]
[407690790,1772681440468,-151.0,9.589e-05,2]
[407690792,1772681440477,-151.0,9.589e-05,2]
[407690794,1772681440486,-151.0,9.589e-05,2]
[407690796,1772681440495,-151.0,9.589e-05,2]
[407690798,1772681440503,-151.0,9.589e-05,2]
[407690800,1772681440513,-151.0,9.589e-05,2]
[407690802,1772681440522,-270.322835,9.589e-05,2]
[407690804,1772681440531,-151.0,9.589e-05,2]
[407690806,1772681440540,-151.0,9.589e-05,2]
[407690808,1772681440549,-151.0,9.589e-05,2]
[407690810,1772681440558,-151.0,9.589e-05,2]
[407690812,1772681440567,-151.0,9.589e-05,2]
[407690814,1772681440578,-151.0,9.589e-05,2]
[407690816,1772681440588,-166.06161,9.589e-05,2]
[407690817,1772681440600,-3334.669787,9.589e-05,2]
[407690819,1772681440610,-3334.669787,9.589e-05,2]
[407690821,1772681440620,-3334.669787,9.589e-05,2]
[407690822,1772681440630,-3334.669787,9.589e-05,2]
[407690824,1772681440639,-3334.669787,9.589e-05,2]
[407690825,1772681440648,-3334.669787,9.589e-05,2]
[407690826,1772681440657,-3334.669787,9.589e-05,2]
[407690827,1772681440666,-3334.669787,9.589e-05,2]
[407690828,1772681440675,-3334.669787,9.589e-05,2]
[407690829,1772681440685,-151.0,9.589e-05,2]
[407690830,1772681440694,-3334.669787,9.589e-05,2]
[407690831,1772681440703,-151.0,9.589e-05,2]
[407690832,1772681440712,-3334.669787,9.589e-05,2]
[407690833,1772681440721,-151.0,9.589e-05,2]
[407690834,1772681440730,-3334.669787,9.589e-05,2]
[407690835,1772681440740,-151.0,9.589e-05,2]
[407690836,1772681440749,-3334.669787,9.589e-05,2]
[407690837,1772681440758,-151.0,9.589e-05,2]
[407690838,1772681440767,-3334.669787,9.589e-05,2]